bitfinex/quotes_BTCUSD_20250212
["timestamp","ask_amount","ask_price","bid_price","bid_amount"]
[1739403211448,0.00022387,97742.0,97741.0,0.18260365]
[1739403211705,0.00022387,97742.0,97741.0,0.18460365]
[1739403212006,0.00122387,97742.0,97741.0,0.18460365]
[1739403216493,0.00122387,97742.0,97741.0,0.002]
[1739403217094,0.00122387,97742.0,97741.0,0.25796965]
[1739403218192,0.00122387,97742.0,97741.0,0.33426965]
[1739403218965,0.00122387,97742.0,97741.0,0.48426965]
[1739403219554,0.00122387,97742.0,97741.0,0.49192288]
[1739403221787,0.00122387,97742.0,97741.0,0.49202948]
[1739403223588,0.00122387,97742.0,97741.0,0.33856348]
[1739403223755,0.00122387,97742.0,97741.0,0.33091025]
[1739403223962,0.00122387,97742.0,97741.0,0.10461025]
[1739403224667,0.00122387,97742.0,97741.0,0.11225789]
[1739403225549,0.00122387,97742.0,97741.0,0.00975424]
[1739403225550,0.15468887,97742.0,97741.0,0.00975424]
[1739403225766,0.00122387,97742.0,97741.0,0.00975424]
[1739403226676,0.00122387,97742.0,97741.0,0.0021066]
[1739403227708,0.00022387,97742.0,97741.0,0.0001066]
[1739403228075,0.00022387,97742.0,97741.0,0.0011066]
[1739403228315,0.00022387,97742.0,97741.0,0.0001066]
[1739403228547,0.00022387,97742.0,97741.0,0.0011066]
[1739403230450,0.02051345,97747.0,97741.0,0.0011066]
[1739403230628,0.0088134,97741.0,97738.0,0.00054804]
[1739403233324,0.0088134,97741.0,97738.0,0.00154804]
[1739403236583,0.0088134,97741.0,97738.0,0.10405169]
[1739403240093,0.0088134,97741.0,97738.0,0.25752269]
[1739403240398,0.0088134,97741.0,97738.0,0.10405169]
[1739403240778,0.71527119,97742.0,97738.0,0.10405169]
[1739403240956,0.71527119,97742.0,97738.0,0.25752269]
[1739403241340,0.71527119,97742.0,97738.0,0.10405169]
[1739403241739,0.71527119,97742.0,97738.0,0.25652269]
[1739403242161,0.71527119,97742.0,97738.0,0.10305169]
[1739403244391,0.71527119,97742.0,97739.0,0.10250365]
[1739403244588,0.71527119,97742.0,97740.0,0.0779]
[1739403244934,0.71527119,97742.0,97741.0,0.10250365]
[1739403246063,0.71527119,97742.0,97741.0,0.25596965]
[1739403248806,0.71627119,97742.0,97741.0,0.25596965]
[1739403249007,0.71627119,97742.0,97741.0,0.10250365]
[1739403250986,0.71627119,97742.0,97741.0,0.25596965]
[1739403252547,0.71627119,97742.0,97741.0,0.26364303]
[1739403254123,0.71627119,97742.0,97741.0,0.36364303]
[1739403261939,0.71627119,97742.0,97741.0,0.36364303]
[1739403265771,0.71627119,97742.0,97741.0,0.21017703]
[1739403267047,0.86973619,97742.0,97741.0,0.10767338]
[1739403267242,0.71627119,97742.0,97741.0,0.10767338]
[1739403267647,0.88010233,97742.0,97741.0,0.10767338]
[1739403268172,0.88010233,97742.0,97741.0,0.1]
[1739403269848,0.73684734,97742.0,97741.0,0.1001065]
[1739403270050,0.71627119,97742.0,97741.0,0.1001065]
[1739403272228,0.71527119,97742.0,97741.0,0.1001065]
[1739403274445,0.71527119,97742.0,97741.0,0.20261015]
[1739403274967,0.61527119,97742.0,97741.0,0.25607615]
[1739403275096,0.61527119,97742.0,97741.0,0.10261015]
[1739403275496,0.61527119,97742.0,97741.0,0.25607615]
[1739403276338,0.61527119,97742.0,97741.0,0.10261015]
[1739403278949,0.76873619,97742.0,97741.0,0.0001065]
[1739403279542,0.77905052,97742.0,97741.0,0.0001065]
[1739403283855,0.76873619,97742.0,97741.0,0.0001065]
[1739403284967,0.61527119,97742.0,97741.0,0.0001065]
[1739403285168,0.76873619,97742.0,97741.0,0.0001065]
[1739403289408,0.61527119,97742.0,97741.0,0.0001065]
[1739403291391,0.62527119,97742.0,97741.0,0.0001065]
[1739403291575,0.0098935,97741.0,97738.0,0.00054804]
[1739403294248,0.0098935,97741.0,97740.0,0.0775]
[1739403294379,0.0098935,97741.0,97740.0,0.18000365]
[1739403301966,0.0098935,97741.0,97740.0,0.10250365]
[1739403302579,0.1633595,97741.0,97740.0,0.10250365]
[1739403302774,0.0098935,97741.0,97738.0,0.00054804]
[1739403302988,0.1633605,97741.0,97738.0,0.00054804]
[1739403303593,0.153469,97740.0,97738.0,0.00054804]
[1739403303816,0.0098935,97741.0,97738.0,0.00054804]
[1739403304461,0.153469,97739.0,97738.0,0.00054804]
[1739403307649,0.153469,97739.0,97716.0,0.0797]
[1739403307650,0.01011716,97741.0,97716.0,0.07964804]
[1739403307779,0.153484,97730.0,97717.0,0.10250365]
[1739403307981,0.01055868,97741.0,97717.0,0.10250365]
[1739403308398,0.15348,97733.0,97717.0,0.10250365]
[1739403308800,0.204635,97735.0,97717.0,0.10250365]
[1739403309065,0.02056626,97735.0,97717.0,0.10250365]
[1739403309274,0.204637,97734.0,97717.0,0.10250365]
[1739403309447,0.02056626,97735.0,97717.0,0.10250365]
[1739403309653,0.02056626,97735.0,97719.0,0.153501]
[1739403309875,0.001,97733.0,97720.0,0.10250365]
[1739403310355,0.154479,97733.0,97720.0,0.10250365]
[1739403310738,0.001,97734.0,97720.0,0.10250365]
[1739403311462,0.358119,97733.0,97720.0,0.10250365]
[1739403311662,0.001,97734.0,97720.0,0.10250365]
[1739403312002,0.001,97733.0,97720.0,0.25600165]
[1739403312773,0.153472,97738.0,97720.0,0.25600165]
[1739403313175,0.001,97734.0,97720.0,0.10250365]
[1739403313538,0.154478,97734.0,97720.0,0.10250365]
[1739403313728,0.001,97733.0,97720.0,0.10250365]
[1739403314771,0.001,97733.0,97720.0,0.25600265]
[1739403315012,0.001,97733.0,97721.0,0.153498]
[1739403315164,0.001,97733.0,97722.0,0.10250365]
[1739403315570,0.153471,97738.0,97722.0,0.10250365]
[1739403315767,0.001,97733.0,97722.0,0.10250365]
[1739403316914,0.002,97733.0,97722.0,0.25599965]
[1739403317294,0.002,97733.0,97723.0,0.153494]
[1739403317495,0.002,97733.0,97724.0,0.10250365]
[1739403318082,0.153473,97737.0,97724.0,0.10250365]
[1739403318482,0.001,97733.0,97724.0,0.10250365]
[1739403318967,0.002,97733.0,97724.0,0.10250365]
[1739403321344,0.002,97733.0,97725.0,0.0815]
[1739403321566,0.002,97733.0,97726.0,0.10250365]
[1739403321759,0.002,97733.0,97727.0,0.08252309]
[1739403321975,0.002,97733.0,97732.0,0.15348]
[1739403322281,0.01055868,97741.0,97738.0,0.15347]
[1739403322518,0.01055868,97741.0,97740.0,0.0815]
[1739403322718,0.01055868,97741.0,97740.0,0.33747165]
[1739403323345,0.01055868,97741.0,97740.0,0.34750445]
[1739403323786,0.01055868,97741.0,97740.0,0.19403645]
[1739403323966,0.01051868,97741.0,97740.0,0.19403645]
[1739403324693,0.01151868,97741.0,97740.0,0.20003645]
[1739403325254,0.01251868,97741.0,97740.0,0.20703645]
[1739403325635,0.01251868,97741.0,97740.0,0.36050445]
[1739403326033,0.01251868,97741.0,97740.0,0.20703645]
[1739403326691,0.01251868,97741.0,97740.0,0.12553645]
[1739403327045,0.01251868,97741.0,97740.0,0.11550365]
[1739403327248,0.01251868,97741.0,97740.0,0.12553026]
[1739403328605,0.01251868,97741.0,97740.0,0.27899826]
[1739403329269,0.01251868,97741.0,97740.0,0.12553026]
[1739403331665,0.01589588,97741.0,97740.0,0.12553026]
[1739403333141,0.34160615,97742.0,97740.0,0.12553026]
[1739403333341,0.34160615,97742.0,97741.0,0.10250365]
[1739403334300,0.34260615,97742.0,97741.0,0.10250365]
[1739403334886,0.34360615,97742.0,97741.0,0.10850365]
[1739403335605,0.34360615,97742.0,97741.0,0.006]
[1739403335830,0.49707115,97742.0,97741.0,0.006]
[1739403336794,0.153466,97741.0,97740.0,4.4e-05]
[1739403338020,0.153466,97741.0,97740.0,0.005044]
[1739403340283,0.153466,97741.0,97740.0,4.4e-05]
[1739403340505,0.153466,97741.0,97740.0,0.003044]
[1739403340713,0.15701854,97741.0,97740.0,0.003044]
[1739403341051,0.15701854,97741.0,97740.0,0.0031505]
[1739403341458,0.1572422,97741.0,97740.0,0.0031505]
[1739403341791,0.0037762,97741.0,97740.0,0.0031505]
[1739403341922,0.1572422,97741.0,97740.0,0.0031505]
[1739403342128,0.0037762,97741.0,97740.0,0.0031505]
[1739403342442,0.1572422,97741.0,97740.0,0.0031505]
[1739403342602,0.0037762,97741.0,97740.0,0.0031505]
[1739403343505,0.0037762,97741.0,97740.0,0.0001505]
[1739403343705,0.0037762,97741.0,97740.0,0.0031505]
[1739403347999,0.1572422,97741.0,97740.0,0.0031505]
[1739403352956,0.1572422,97741.0,97740.0,0.0031505]
[1739403359715,0.0037762,97741.0,97740.0,0.0031505]
[1739403359923,0.00477907,97741.0,97740.0,0.4458345]
[1739403360181,0.00477907,97741.0,97740.0,1.5322335]
[1739403360400,0.00477907,97741.0,97740.0,1.57998863]
[1739403360912,0.00477907,97741.0,97740.0,1.55824363]
[1739403361038,0.00477907,97741.0,97740.0,1.37118863]
[1739403361245,0.00577907,97741.0,97740.0,1.37818863]
[1739403361652,0.00477907,97741.0,97740.0,1.28999563]
[1739403362027,0.00477907,97741.0,97740.0,1.2796435]
[1739403362766,0.00477907,97741.0,97740.0,0.3806185]
[1739403362966,0.00577907,97741.0,97740.0,0.3876185]
[1739403363167,0.00577907,97741.0,97740.0,1.9513055]
[1739403363373,0.00577907,97741.0,97740.0,2.09097718]
[1739403363554,0.18118522,97742.0,97741.0,0.2451]
[1739403363748,0.10308522,97742.0,97741.0,2.65577798]
[1739403363950,0.02498522,97742.0,97741.0,4.24708163]
[1739403364361,0.99423358,97745.0,97744.0,0.387362]
[1739403364580,0.99423358,97745.0,97744.0,2.60054363]
[1739403364785,0.99423358,97745.0,97744.0,2.67128197]
[1739403365025,0.96053205,97745.0,97744.0,4.17128197]
[1739403365223,0.91203205,97745.0,97744.0,4.17128197]
[1739403365448,0.91225571,97745.0,97744.0,4.17128197]
[1739403365677,0.88591865,97745.0,97744.0,4.17128197]
[1739403365905,0.88153742,97745.0,97744.0,4.17128197]
[1739403366338,0.84153743,97745.0,97744.0,4.07439521]
[1739403366541,0.83095182,97745.0,97744.0,4.07439521]
[1739403367303,0.79110947,97745.0,97744.0,4.56897656]
[1739403367874,0.78721159,97745.0,97744.0,5.08051656]
[1739403372388,0.78721159,97745.0,97744.0,5.07051656]
[1739403372594,0.78721159,97745.0,97744.0,5.08051656]
[1739403373019,0.71665159,97745.0,97744.0,5.08051656]
[1739403373418,0.71350962,97745.0,97744.0,5.08051656]
[1739403373620,0.597498,97745.0,97744.0,5.08051656]
[1739403373867,0.54073701,97745.0,97744.0,5.3292549]
[1739403374022,0.0286969,97745.0,97744.0,5.3292549]
[1739403374223,0.08151662,97759.0,97758.0,0.34644]
[1739403374423,0.08151662,97759.0,97758.0,4.04849974]
[1739403374810,0.00022366,97769.0,97768.0,0.303424]
[1739403375014,0.00022366,97769.0,97768.0,3.01457865]
[1739403375275,0.00022366,97769.0,97768.0,3.02457865]
[1739403376480,0.00022366,97769.0,97768.0,3.02157865]
[1739403376704,0.00022366,97769.0,97768.0,4.11032521]
[1739403376871,0.00022366,97769.0,97768.0,4.18106355]
[1739403377073,0.00022366,97769.0,97768.0,5.68806355]
[1739403377937,0.00022366,97769.0,97768.0,5.68106355]
[1739403378296,0.00022366,97769.0,97768.0,5.61032521]
[1739403378503,0.00022366,97769.0,97768.0,4.11032521]
[1739403379746,0.00022366,97769.0,97768.0,4.11732521]
[1739403380109,0.00022366,97769.0,97768.0,4.12432521]
[1739403382166,0.00022366,97769.0,97768.0,4.61190656]
[1739403382770,0.00022366,97769.0,97768.0,4.6817449]
[1739403383729,0.00022366,97769.0,97768.0,6.1817449]
[1739403383919,0.00022366,97769.0,97768.0,4.04766556]
[1739403384115,0.00022366,97769.0,97768.0,6.11190656]
[1739403384309,0.08151662,97788.0,97768.0,5.93848256]
[1739403384535,0.08151662,97788.0,97786.0,0.42889965]
[1739403384832,0.00018387,97787.0,97786.0,3.00446065]
[1739403385256,0.00018387,97787.0,97786.0,3.01456405]
[1739403385772,0.15801662,97798.0,97793.0,0.204512]
[1739403385974,0.15806075,97798.0,97796.0,0.023]
[1739403386182,0.15806075,97798.0,97797.0,0.10250365]
[1739403386518,0.07654413,97798.0,97797.0,0.10250365]
[1739403387820,0.07654413,97798.0,97797.0,0.14657553]
[1739403388541,0.07665063,97798.0,97797.0,0.14657553]
[1739403388940,0.07665063,97798.0,97797.0,0.10850365]
[1739403389495,0.07665063,97798.0,97797.0,0.14667371]
[1739403389865,0.07665063,97798.0,97797.0,0.04417006]
[1739403389977,0.07665063,97798.0,97793.0,0.51128]
[1739403389978,0.229083,97794.0,97793.0,0.51128]
[1739403390481,0.23310513,97794.0,97793.0,0.51128]
[1739403391275,0.23310513,97794.0,97793.0,0.46377064]
[1739403391689,0.23310513,97794.0,97793.0,0.03059064]
[1739403391852,0.23310513,97794.0,97779.0,0.01529155]
[1739403391853,0.153405,97780.0,97779.0,0.01529155]
[1739403392048,0.0757,97767.0,97750.0,0.15658372]
[1739403392248,0.0757,97767.0,97753.0,0.10250365]
[1739403392475,0.0757,97767.0,97754.0,0.023]
[1739403392673,0.00404702,97766.0,97755.0,0.10250365]
[1739403393286,0.00404702,97766.0,97755.0,0.1025478]
[1739403393489,0.153431,97764.0,97755.0,0.1025478]
[1739403393690,0.00406513,97765.0,97755.0,0.1025478]
[1739403393944,0.0757,97767.0,97755.0,0.1025478]
[1739403393945,0.00406197,97763.0,97755.0,0.1025478]
[1739403394145,0.153433,97762.0,97755.0,0.1025478]
[1739403394349,0.00406039,97762.0,97755.0,0.1025478]
[1739403394529,0.15343,97764.0,97755.0,0.1025478]
[1739403394757,0.00405881,97761.0,97755.0,0.1095478]
[1739403394969,0.15343,97765.0,97755.0,0.1095478]
[1739403395175,0.00407305,97760.0,97755.0,0.1095478]
[1739403395376,0.001,97766.0,97755.0,0.1095478]
[1739403395579,0.00407147,97759.0,97755.0,0.1095478]
[1739403395791,0.153437,97760.0,97755.0,0.1095478]
[1739403396000,0.00406989,97758.0,97755.0,0.1025478]
[1739403396202,0.00407147,97759.0,97755.0,0.1085478]
[1739403396356,0.204571,97766.0,97755.0,0.1025478]
[1739403396539,0.00406989,97758.0,97755.0,0.1025478]
[1739403396742,0.001,97759.0,97755.0,0.1085478]
[1739403397332,0.0040778,97758.0,97755.0,0.1085478]
[1739403397724,0.001,97759.0,97755.0,0.1085478]
[1739403397955,0.00407622,97757.0,97755.0,0.1085478]
[1739403398156,0.001,97759.0,97755.0,0.1085478]
[1739403398307,0.15750727,97756.0,97755.0,0.00604415]
[1739403398526,0.153443,97756.0,97755.0,0.00604415]
[1739403398738,0.15751832,97756.0,97755.0,0.00604415]
[1739403398943,0.15751832,97756.0,97755.0,4.415e-05]
[1739403399320,0.15751832,97756.0,97755.0,0.00404415]
[1739403399524,0.15751832,97756.0,97755.0,4.415e-05]
[1739403399939,0.15751832,97756.0,97755.0,0.00504415]
[1739403400140,0.24021832,97756.0,97755.0,0.0052678]
[1739403400347,0.08677532,97756.0,97755.0,0.10777145]
[1739403400548,0.00407532,97756.0,97755.0,0.10777145]
[1739403400861,0.0827,97763.0,97755.0,0.10777145]
[1739403401065,0.0827,97763.0,97762.0,0.153433]
[1739403401265,0.0827,97763.0,97762.0,0.10250365]
[1739403402339,0.0827,97763.0,97762.0,0.25593665]
[1739403402551,0.0827,97763.0,97762.0,0.25893665]
[1739403403718,0.0827,97763.0,97762.0,0.25593665]
[1739403403917,0.0827,97763.0,97762.0,0.26093665]
[1739403404793,0.08151662,97778.0,97762.0,0.26093665]
[1739403404794,0.0827,97769.0,97768.0,0.153424]
[1739403404999,0.0827,97769.0,97768.0,0.25592765]
[1739403406638,0.0827,97769.0,97768.0,0.25992765]
[1739403408543,0.0827,97769.0,97768.0,0.25592765]
[1739403408719,0.0827,97769.0,97768.0,0.26092765]
[1739403409018,0.0827,97769.0,97768.0,0.25592765]
[1739403409256,0.0827,97769.0,97768.0,0.26192765]
[1739403409452,0.0827,97769.0,97768.0,0.25592765]
[1739403409844,0.0827,97769.0,97768.0,0.26192765]
[1739403410082,0.0827,97769.0,97768.0,0.25592765]
[1739403410292,0.0827,97769.0,97768.0,0.26292765]
[1739403411786,0.0827,97769.0,97768.0,0.25592765]
[1739403411974,0.0827,97769.0,97768.0,0.2621513]
[1739403412365,0.0827,97769.0,97768.0,0.2561513]
[1739403412683,0.0827,97769.0,97768.0,0.2631513]
[1739403412988,0.0827,97769.0,97768.0,0.2561513]
[1739403413198,0.0827,97769.0,97768.0,0.2621513]
[1739403413407,0.0827,97769.0,97768.0,0.2561513]
[1739403414245,0.08414,97769.0,97768.0,0.2561513]
[1739403414492,0.08414,97769.0,97768.0,0.2547113]
[1739403414672,0.08414,97769.0,97768.0,0.2617113]
[1739403414870,0.08414,97769.0,97768.0,0.2547113]
[1739403415294,0.08414,97769.0,97768.0,0.2607113]
[1739403417570,0.08414,97769.0,97768.0,0.2621513]
[1739403417690,0.08414,97769.0,97768.0,0.1087273]
[1739403417894,0.08414,97769.0,97768.0,0.2621513]
[1739403418603,1.00144,97769.0,97768.0,0.2561513]
[1739403418803,1.00546415,97769.0,97768.0,0.2631513]
[1739403419003,1.02453743,97769.0,97768.0,0.2631513]
[1739403419203,1.02453743,97769.0,97768.0,0.2561513]
[1739403419403,1.02453743,97769.0,97768.0,0.2621513]
[1739403419622,1.02453743,97769.0,97768.0,0.2561513]
[1739403420995,1.02453743,97769.0,97768.0,0.2631513]
[1739403421325,1.02453743,97769.0,97768.0,0.2561513]
[1739403421727,1.02453743,97769.0,97768.0,0.2631513]
[1739403421928,1.00546415,97769.0,97768.0,0.2631513]
[1739403422598,1.00546415,97769.0,97768.0,0.2561513]
[1739403422754,1.00546415,97769.0,97768.0,0.2631513]
[1739403423395,1.00546415,97769.0,97768.0,0.1097273]
[1739403423546,1.00546415,97769.0,97768.0,0.2631513]
[1739403424203,1.00144,97769.0,97768.0,0.2631513]
[1739403424405,1.00546454,97769.0,97768.0,0.2631513]
[1739403425445,1.02454892,97769.0,97768.0,0.2631513]
[1739403425775,1.02454892,97769.0,97768.0,0.1097273]
[1739403428113,1.02454892,97769.0,97768.0,0.2631513]
[1739403428304,1.02052438,97769.0,97768.0,0.2631513]
[1739403428932,1.02529622,97769.0,97768.0,0.2631513]
[1739403429788,1.02529622,97769.0,97768.0,0.7556473]
[1739403429988,1.02529622,97769.0,97768.0,1.8205843]
[1739403430233,1.00621184,97769.0,97768.0,1.5389163]
[1739403430882,1.00621184,97769.0,97768.0,1.4473583]
[1739403431586,1.00621184,97769.0,97768.0,1.5973583]
[1739403432322,1.00621184,97769.0,97768.0,1.6870583]
[1739403433495,1.00621184,97769.0,97768.0,1.6800583]
[1739403434155,1.00621184,97769.0,97768.0,1.6870583]
[1739403434357,1.00621184,97769.0,97768.0,3.1870583]
[1739403434552,1.00144,97769.0,97768.0,3.1870583]
[1739403434734,1.00622247,97769.0,97768.0,3.1800583]
[1739403435276,1.00632897,97769.0,97768.0,2.5900923]
[1739403435735,1.00632897,97769.0,97768.0,2.9170923]
[1739403436153,1.00632897,97769.0,97768.0,2.6591023]
[1739403437038,1.00632897,97769.0,97768.0,2.1154363]
[1739403437252,1.0015465,97769.0,97768.0,2.1154363]
[1739403437422,1.0015465,97769.0,97768.0,2.1084363]
[1739403437636,1.00632897,97769.0,97768.0,2.1154363]
[1739403438231,1.00632897,97769.0,97768.0,2.1224363]
[1739403438635,1.00632897,97769.0,97768.0,2.6338463]
[1739403441023,1.00632897,97769.0,97768.0,2.5919253]
[1739403444232,1.00632897,97769.0,97768.0,1.7988763]
[1739403444782,1.00632897,97769.0,97768.0,3.2988763]
[1739403445877,1.00628897,97769.0,97768.0,3.2988763]
[1739403446083,1.00628897,97769.0,97768.0,3.3088763]
[1739403446285,0.82513397,97769.0,97768.0,3.3841763]
[1739403446598,0.52416269,97769.0,97768.0,3.3941763]
[1739403447006,0.42188269,97769.0,97768.0,3.3941763]
[1739403447606,0.42188269,97769.0,97768.0,3.3801763]
[1739403447904,0.42188269,97769.0,97768.0,3.3871763]
[1739403450494,0.42188269,97769.0,97768.0,3.54775765]
[1739403452587,0.42188269,97769.0,97768.0,1.97245765]
[1739403452818,0.42188269,97769.0,97768.0,1.77945765]
[1739403452996,0.42188269,97769.0,97768.0,1.67197265]
[1739403453142,0.42654955,97769.0,97768.0,1.82197265]
[1739403453350,0.42188269,97769.0,97768.0,1.82197265]
[1739403454170,0.42188269,97769.0,97768.0,1.43514265]
[1739403454371,0.42654842,97769.0,97768.0,3.45346365]
[1739403454723,0.42188269,97769.0,97768.0,3.44484365]
[1739403456471,0.42188269,97769.0,97768.0,3.2842623]
[1739403457255,0.42188269,97769.0,97768.0,4.7842623]
[1739403459070,0.42188269,97769.0,97768.0,3.2842623]
[1739403469544,0.42188269,97769.0,97768.0,2.8846403]
[1739403473224,0.36051469,97769.0,97768.0,2.8846403]
[1739403474933,0.35911469,97769.0,97768.0,2.8846403]
[1739403475596,0.29774669,97769.0,97768.0,2.8846403]
[1739403475807,0.25683469,97769.0,97768.0,2.8846403]
[1739403476009,0.21592269,97769.0,97768.0,2.8846403]
[1739403477239,0.19546669,97769.0,97768.0,2.8846403]
[1739403477456,0.17501069,97769.0,97768.0,2.8846403]
[1739403478091,0.17501069,97769.0,97768.0,1.2745613]
[1739403478505,0.17501069,97769.0,97768.0,3.3388023]
[1739403483610,0.17501069,97769.0,97768.0,3.0254083]
[1739403484056,0.17501069,97769.0,97768.0,2.9056763]
[1739403488081,0.17501069,97769.0,97768.0,2.93765639]
[1739403489384,0.15455469,97769.0,97768.0,2.94765639]
[1739403489584,0.00461895,97769.0,97768.0,3.03732609]
[1739403489726,0.00461895,97769.0,97768.0,3.49489901]
[1739403489941,0.08162312,97793.0,97792.0,0.303386]
[1739403490144,0.08579491,97793.0,97792.0,1.12925965]
[1739403490342,0.08579491,97793.0,97792.0,1.34394465]
[1739403490670,0.08162312,97793.0,97792.0,1.34394465]
[1739403490878,0.0001065,97793.0,97792.0,1.34394465]
[1739403491342,0.0001065,97793.0,97792.0,1.26188765]
[1739403491455,0.01923965,97793.0,97792.0,0.93160165]
[1739403491654,0.01923965,97793.0,97792.0,0.93860165]
[1739403491882,0.01923965,97793.0,97792.0,0.60659965]
[1739403492083,0.01923965,97793.0,97792.0,0.61563965]
[1739403492387,0.01923965,97793.0,97792.0,0.59723965]
[1739403492924,0.0001065,97793.0,97792.0,0.59723965]
[1739403493274,0.0001065,97793.0,97792.0,0.59825706]
[1739403495721,0.0001065,97793.0,97792.0,0.42294706]
[1739403496116,0.0001065,97793.0,97792.0,0.72139506]
[1739403497571,0.0001065,97793.0,97792.0,0.70306106]
[1739403498153,0.01922188,97793.0,97792.0,0.70306106]
[1739403498762,0.01922188,97793.0,97792.0,0.42294706]
[1739403503918,0.0001065,97793.0,97792.0,0.42294706]
[1739403504939,0.0001065,97793.0,97792.0,0.44594706]
[1739403505353,0.0001065,97793.0,97792.0,1.78925006]
[1739403506393,0.0001065,97793.0,97792.0,1.63344106]
[1739403506621,1.0001065,97793.0,97792.0,1.63344106]
[1739403506833,1.00432037,97793.0,97792.0,1.63344106]
[1739403507038,1.00428037,97793.0,97792.0,1.63344106]
[1739403507870,0.75879551,97793.0,97792.0,1.63344106]
[1739403508077,0.75879551,97793.0,97792.0,1.04832406]
[1739403513203,0.75879551,97793.0,97792.0,0.44594706]
[1739403513442,0.75879551,97793.0,97792.0,1.76137506]
[1739403513587,0.75879551,97793.0,97792.0,1.80210206]
[1739403517538,0.75879551,97793.0,97792.0,1.80232571]
[1739403517673,0.75890201,97793.0,97792.0,1.80232571]
[1739403519282,0.75890201,97793.0,97792.0,1.28616271]
[1739403528645,0.75890201,97793.0,97792.0,1.79745271]
[1739403536297,0.75890201,97793.0,97792.0,1.80893271]
[1739403536695,0.75890201,97793.0,97792.0,3.03318171]
[1739403540899,0.02062339,97831.0,97792.0,3.03318171]
[1739403540900,0.0794,97827.0,97802.0,0.01]
[1739403541112,0.984,97806.0,97805.0,0.42886965]
[1739403541325,0.984,97806.0,97805.0,3.00433065]
[1739403542443,0.767235,97806.0,97805.0,3.01433065]
[1739403542853,0.712986,97806.0,97805.0,3.01433065]
[1739403543058,0.63119,97806.0,97805.0,3.01433065]
[1739403543393,0.63119,97806.0,97805.0,4.51433065]
[1739403543590,0.00022366,97839.0,97838.0,0.303314]
[1739403543797,0.08151662,97848.0,97842.0,0.303308]
[1739403544003,0.08151662,97848.0,97842.0,2.37273565]
[1739403544205,0.00066543,97843.0,97842.0,2.36417265]
[1739403544607,0.00066543,97843.0,97842.0,2.35127265]
[1739403544812,0.00066543,97843.0,97842.0,2.33283828]
[1739403545664,0.00066543,97843.0,97842.0,2.15428928]
[1739403545995,0.00066543,97843.0,97842.0,2.16128928]
[1739403546278,0.00066543,97843.0,97842.0,1.87675228]
[1739403547145,0.00066543,97843.0,97842.0,3.37675228]
[1739403547354,0.00066543,97843.0,97842.0,1.87675228]
[1739403547785,0.00022366,97863.0,97843.0,0.173]
[1739403547953,0.0003561,97858.0,97857.0,0.42878765]
[1739403548141,0.0003561,97858.0,97857.0,1.20651665]
[1739403548336,0.0003561,97858.0,97857.0,1.28718865]
[1739403548990,0.0003561,97858.0,97857.0,1.79813865]
[1739403549726,0.0003561,97858.0,97857.0,0.93973765]
[1739403549937,0.0003561,97858.0,97857.0,0.94673765]
[1739403550158,0.0003561,97858.0,97857.0,2.57482054]
[1739403550371,0.0003561,97858.0,97857.0,2.67477654]
[1739403551360,0.0003561,97858.0,97857.0,2.63800865]
[1739403551555,0.0003561,97858.0,97857.0,2.67477654]
[1739403552074,0.0003561,97858.0,97857.0,2.63800865]
[1739403552663,0.0003561,97858.0,97857.0,2.63100865]
[1739403552879,0.0003561,97858.0,97857.0,2.63800865]
[1739403553056,0.0003561,97858.0,97857.0,2.67477654]
[1739403553317,0.0003561,97858.0,97857.0,2.63100865]
[1739403553460,0.0003561,97858.0,97857.0,2.52503654]
[1739403553661,0.0003561,97858.0,97857.0,2.01049065]
[1739403554563,0.0003561,97858.0,97857.0,1.66794165]
[1739403554771,0.0003561,97858.0,97857.0,1.35647265]
[1739403556248,0.0003561,97858.0,97857.0,1.33347265]
[1739403557558,0.0003561,97858.0,97857.0,1.68347265]
[1739403557928,0.0003561,97858.0,97857.0,1.78347265]
[1739403559807,0.0003561,97858.0,97857.0,1.76047265]
[1739403561305,1.0003561,97858.0,97857.0,1.78347265]
[1739403561548,1.00438938,97858.0,97857.0,1.78347265]
[1739403565615,1.00438938,97858.0,97857.0,1.37373765]
[1739403565818,1.00438938,97858.0,97857.0,2.17738365]
[1739403567272,1.00438938,97858.0,97857.0,2.15787565]
[1739403569079,1.00438938,97858.0,97857.0,1.19756365]
[1739403569284,1.08598938,97858.0,97857.0,0.87373765]
[1739403569917,1.08598938,97858.0,97857.0,0.86673765]
[1739403570393,1.08598938,97858.0,97857.0,0.87373765]
[1739403571450,1.08598938,97858.0,97857.0,0.86673765]
[1739403571832,1.08598938,97858.0,97857.0,0.87373765]
[1739403572537,1.08598938,97858.0,97857.0,0.72045365]
[1739403573053,1.23927238,97858.0,97857.0,0.61795]
[1739403574515,1.23927238,97858.0,97857.0,0.61095]
[1739403574934,1.23927238,97858.0,97857.0,0.61795]
[1739403575159,1.23927238,97858.0,97857.0,0.61095]
[1739403575561,1.23927238,97858.0,97857.0,0.61595]
[1739403575793,1.23927238,97858.0,97857.0,0.61095]
[1739403576008,1.23927238,97858.0,97857.0,0.61295]
[1739403576181,1.2583407,97858.0,97857.0,0.61295]
[1739403577242,1.23927238,97858.0,97857.0,0.61295]
[1739403588913,1.2411333,97858.0,97857.0,0.61295]
[1739403590495,1.0878503,97858.0,97857.0,0.61295]
[1739403592546,1.2411333,97858.0,97857.0,0.61295]
[1739403595029,1.26016025,97858.0,97857.0,0.61295]
[1739403595181,1.02974819,97858.0,97857.0,0.61295]
[1739403595834,0.87646519,97858.0,97857.0,0.61295]
[1739403597965,1.02974819,97858.0,97857.0,0.61295]
[1739403599628,1.01072124,97858.0,97857.0,0.61295]
[1739403600439,1.01082774,97858.0,97857.0,0.61295]
[1739403601306,0.85754474,97858.0,97857.0,0.61295]
[1739403601515,1.01082774,97858.0,97857.0,0.61295]
[1739403601964,0.85754474,97858.0,97857.0,0.61295]
[1739403603025,0.87663035,97858.0,97857.0,0.61295]
[1739403604096,0.87663035,97858.0,97857.0,0.561406]
[1739403606598,0.79503035,97858.0,97857.0,0.71469]
[1739403606996,0.79503035,97858.0,97857.0,0.561406]
[1739403607247,0.79503035,97858.0,97857.0,0.71469]
[1739403608059,0.79503035,97858.0,97857.0,0.561406]
[1739403608548,0.79503035,97858.0,97857.0,0.71469]
[1739403609773,0.79503035,97858.0,97857.0,0.561406]
[1739403611126,0.77594474,97858.0,97857.0,0.561406]
[1739403611741,0.77594474,97858.0,97857.0,0.71469]
[1739403611941,0.77594474,97858.0,97857.0,0.561406]
[1739403612539,0.77594474,97858.0,97857.0,0.71491365]
[1739403616166,0.77594474,97858.0,97857.0,0.56162965]
[1739403616491,0.77594474,97858.0,97857.0,0.71491365]
[1739403617163,0.77594474,97858.0,97857.0,0.56162965]
[1739403619891,0.92922774,97858.0,97857.0,0.56162965]
[1739403620100,0.92333354,97858.0,97857.0,0.56162965]
[1739403620311,0.92923377,97858.0,97857.0,0.56162965]
[1739403622281,0.77595077,97858.0,97857.0,0.56162965]